bitfinex-derivatives/quotes_ETHF0:USTF0_20250928
["timestamp","ask_amount","ask_price","bid_price","bid_amount"]
[1759081863200,4.73704567,4045.1,4045.0,0.99713547]
[1759081863703,4.73704567,4045.1,4045.0,0.55231547]
[1759081864001,5.18185567,4045.1,4045.0,0.00191547]
[1759081864398,4.73704567,4045.1,4045.0,0.00191547]
[1759081865511,4.73704567,4045.1,4045.0,0.78353547]
[1759081865703,4.73704567,4045.1,4045.0,0.99713547]
[1759081866103,4.73704567,4045.1,4045.0,1.33723547]
[1759081866304,4.48604567,4045.1,4045.0,1.33723547]
[1759081866609,3.69474567,4045.1,4045.0,1.33723547]
[1759081866807,3.94574567,4045.1,4045.0,1.33723547]
[1759081867006,4.37554567,4045.1,4045.0,1.33723547]
[1759081867209,4.70354567,4045.1,4045.0,1.33723547]
[1759081872009,3.2078,4046.2,4046.1,0.4447]
[1759081872214,3.4588,4046.2,4046.1,1.2054]
[1759081873107,4.53634574,4046.2,4046.1,1.2054]
[1759081873307,1.55084574,4046.2,4046.1,1.2054]
[1759081875013,1.29984574,4046.2,4046.1,1.2054]
[1759081875214,1.55084574,4046.2,4046.1,1.2054]
[1759081876322,0.4733,4046.2,4046.1,1.2054]
[1759081876516,1.0088,4046.2,4046.1,1.2054]
[1759081876712,1.0088,4046.2,4046.1,0.4447]
[1759081878616,0.4298,4045.8,4045.0,0.13171547]
[1759081878811,0.0945,4046.0,4045.0,0.13171547]
[1759081878812,0.7578,4045.6,4045.5,0.44477]
[1759081879721,0.7578,4045.6,4045.3,0.44478]
[1759081879722,0.7578,4045.4,4045.3,0.44478]
[1759081880018,2.35251353,4045.4,4045.3,0.44478]
[1759081880915,2.02451353,4045.4,4045.2,0.4448]
[1759081881113,0.7578,4045.3,4045.2,0.4448]
[1759081881714,0.7578,4045.3,4045.2,0.7532]
[1759081882320,0.7578,4045.3,4045.2,0.9639]
[1759081883920,1.24461369,4045.3,4045.2,0.9639]
[1759081885020,0.48681369,4045.3,4045.2,1.1868]
[1759081885417,0.73781369,4045.3,4045.2,1.1868]
[1759081885822,0.48681369,4045.3,4045.2,1.1868]
[1759081886023,0.73781369,4045.3,4045.2,1.1868]
[1759081887326,1.49801369,4045.3,4045.1,0.3403]
[1759081887526,1.24701369,4045.2,4045.1,0.3403]
[1759081887825,1.24701369,4045.2,4045.1,0.549]
[1759081888322,1.24701369,4045.2,4045.1,0.99381]
[1759081890125,1.49801369,4045.2,4045.1,0.99381]
[1759081890619,4.23232475,4046.4,4045.1,0.99381]
[1759081890620,2.22156122,4046.7,4045.6,1.11187]
[1759081890824,1.89391353,4046.6,4046.5,0.6835]
[1759081897019,1.34371353,4046.6,4046.5,0.9072]
[1759081897224,3.2078,4046.7,4046.6,0.87704]
[1759081897426,3.4588,4046.7,4046.6,1.21734]
[1759081900025,3.6084,4046.7,4046.6,1.21734]
[1759081905235,0.4006,4046.7,4046.6,1.21734]
[1759081906233,3.2078,4047.3,4046.6,0.7727]
[1759081906535,3.3574,4047.3,4047.2,1.21728]
[1759081906726,3.6084,4047.3,4047.2,1.21728]
[1759081907430,3.758,4047.3,4047.2,1.21728]
[1759081907827,3.6084,4047.3,4047.2,1.21728]
[1759081909030,0.1496,4047.3,4047.2,1.21728]
[1759081909238,0.4006,4047.3,4047.2,1.21728]
[1759081912638,0.251,4047.3,4047.2,1.21728]
[1759081914139,0.4355,4047.3,4047.2,1.21728]
[1759081915229,0.62,4047.3,4047.2,1.21728]
[1759081917942,0.369,4047.3,4047.2,1.21728]
[1759081918142,0.62,4047.3,4047.2,1.21728]
[1759081919033,0.62,4047.3,4047.2,0.3403]
[1759081919034,0.7353,4047.3,4047.2,0.3403]
[1759081919234,0.4843,4047.0,4046.9,3.2078]
[1759081919439,0.4843,4046.8,4046.7,0.44463]
[1759081919737,0.7353,4046.8,4046.7,0.337]
[1759081920040,1.22402659,4046.8,4046.7,0.337]
[1759081920938,0.369,4046.1,4046.0,0.6957]
[1759081921140,1.96371353,4046.1,4046.0,0.6957]
[1759081921442,2.45244012,4046.1,4046.0,0.6957]
[1759081921642,2.56774012,4046.1,4046.0,0.6957]
[1759081922341,2.45244012,4046.1,4046.0,0.9296]
[1759081925232,0.48872659,4046.1,4046.0,0.9296]
[1759081925439,0.73972659,4046.1,4046.0,0.9296]
[1759081928140,0.48872659,4046.1,4046.0,0.9296]
[1759081928440,0.92897,4046.6,4046.5,0.6895]
[1759081928641,3.01253588,4046.6,4046.5,0.4653]
[1759081928833,0.369,4046.1,4046.0,0.9296]
[1759081929035,2.07901353,4046.1,4046.0,0.6957]
[1759081929236,2.56786588,4046.1,4046.0,0.6957]
[1759081929746,2.45256588,4046.1,4046.0,0.6957]
[1759081930442,0.74452,4046.0,4045.9,0.337]
[1759081930643,0.4843,4045.7,4045.6,0.337]
[1759081930841,2.07901353,4045.7,4045.6,0.337]
[1759081931148,2.45258954,4045.7,4045.6,0.5612]
[1759081932641,2.45258954,4045.7,4045.0,0.57504547]
[1759081932642,0.44479,4045.4,4045.0,0.57504547]
[1759081932943,0.4843,4045.2,4045.1,0.337]
[1759081933146,0.89812,4045.1,4045.0,0.46721547]
[1759081933446,1.38699601,4045.1,4045.0,0.33891547]
[1759081933647,1.38699601,4045.1,4045.0,0.47051547]
[1759081933944,1.38699601,4045.1,4045.0,0.69391547]
[1759081933945,2.17798954,4045.1,4045.0,0.69391547]
[1759081934545,2.42898954,4045.1,4045.0,0.69391547]
[1759081935046,2.17798954,4045.1,4045.0,0.69391547]
[1759081935244,2.42898954,4045.1,4045.0,0.91881547]
[1759081936450,2.16426993,4045.1,4045.0,0.91881547]
[1759081941651,1.91326993,4045.1,4045.0,0.91881547]
[1759081941838,2.16426993,4045.1,4045.0,0.91881547]
[1759081944353,2.01696993,4045.1,4045.0,0.33891547]
[1759081944651,2.26796993,4045.1,4045.0,0.33891547]
[1759081945253,2.26778958,4045.1,4045.0,0.33891547]
[1759081946347,2.26778958,4045.1,4045.0,0.46481547]
[1759081947651,0.48869566,4045.1,4045.0,0.90471547]
[1759081947851,1.98458958,4045.1,4045.0,0.90471547]
[1759081948351,2.15048958,4045.1,4045.0,0.90471547]
[1759081948551,2.25418958,4045.1,4045.0,0.33891547]
[1759081948953,2.25418958,4045.1,4045.0,0.46481547]
[1759081950254,2.25418958,4045.1,4045.0,0.69281547]
[1759081950453,0.73969566,4045.1,4045.0,0.90471547]
[1759081950648,1.81868958,4045.1,4045.0,0.90471547]
[1759081954456,2.15048958,4045.1,4045.0,0.90471547]
[1759081955366,2.25418958,4045.1,4045.0,1.13764547]
[1759081957758,2.15048958,4045.1,4045.0,1.13764547]
[1759081960071,2.25418958,4045.1,4045.0,0.69281547]
[1759081960372,2.25418958,4045.1,4045.0,0.46481547]
[1759081960875,2.25418958,4045.1,4045.0,0.69281547]
[1759081961874,2.15048958,4045.1,4045.0,0.69281547]
[1759081966770,1.89948958,4045.1,4045.0,0.69281547]
[1759081967063,2.15048958,4045.1,4045.0,0.69281547]
[1759081970483,2.15048958,4045.1,4045.0,1.13764547]
[1759081971073,2.15048958,4045.1,4045.0,0.69281547]
[1759081971277,2.59530958,4045.1,4045.0,0.69281547]
[1759081974083,2.68750958,4045.1,4045.0,0.69281547]
[1759081977882,2.59530958,4045.1,4045.0,0.69281547]
[1759081978086,2.59784605,4045.1,4045.0,0.69281547]
[1759081978787,2.69004605,4045.1,4045.0,0.69281547]
[1759081979082,2.69004605,4045.1,4045.0,0.46481547]
[1759081979286,2.69004605,4045.1,4045.0,0.33891547]
[1759081980183,2.69004605,4045.1,4045.0,0.00191547]
[1759081980974,2.59784605,4045.1,4045.0,0.68751547]
[1759081981378,2.15302605,4045.1,4045.0,0.91471547]
[1759081981585,2.59784605,4045.1,4045.0,0.91471547]
[1759081981987,2.69004605,4045.1,4045.0,0.91471547]
[1759081983085,0.49123213,4045.1,4045.0,1.35954547]
[1759081983292,0.74223213,4045.1,4045.0,6.35954547]
[1759081987791,0.88973213,4045.1,4045.0,1.35954547]
[1759081987990,0.88973213,4045.1,4045.0,0.91471547]
[1759081987991,1.03723213,4045.1,4045.0,0.91471547]
[1759081989997,1.12943213,4045.1,4045.0,0.68751547]
[1759081990189,1.12943213,4045.1,4045.0,0.47021547]
[1759081991691,2.11622605,4045.1,4045.0,0.91471547]
[1759081992198,1.96872605,4045.1,4045.0,0.91471547]
[1759081996997,1.96872605,4045.1,4045.0,1.35954547]
[1759081998200,2.23432692,4045.1,4045.0,1.35954547]
[1759081999098,1.74309479,4045.1,4045.0,1.35954547]
[1759081999298,2.23437407,4045.1,4045.0,1.35954547]
[1759082001307,2.13087407,4045.1,4045.0,1.35954547]
[1759082001596,2.38087407,4045.1,4045.0,1.35954547]
[1759082001901,2.91789407,4045.1,4045.0,0.68751547]
[1759082002093,2.91789407,4045.1,4045.0,0.77804547]
[1759082002702,2.47307407,4045.1,4045.0,0.91504547]
[1759082003105,2.47307407,4045.1,4045.0,0.47021547]
[1759082003305,2.47307407,4045.1,4045.0,0.91504547]
[1759082003502,2.47307407,4045.1,4045.0,0.47021547]
[1759082003899,2.23337407,4045.1,4045.0,0.90341547]
[1759082010803,2.23337407,4045.1,4045.0,1.34824547]
[1759082011404,2.37957407,4045.1,4045.0,1.34824547]
[1759082014517,0.1914,4043.9,4043.5,1.77220396]
[1759082014724,0.1914,4043.0,4042.8,3.2078]
[1759082014912,1.38183098,4043.0,4042.8,3.2078]
[1759082015122,1.38183098,4043.0,4042.5,0.1278]
[1759082015420,1.38357438,4043.0,4042.9,0.02680647]
[1759082015616,0.6401,4042.1,4042.0,0.1278]
[1759082015821,2.72642577,4042.1,4042.0,0.1278]
[1759082016114,2.72642577,4042.1,4042.0,0.3372]
[1759082016418,2.53502577,4042.1,4042.0,0.3372]
[1759082016719,2.72642577,4042.1,4042.0,0.65232177]
[1759082017217,2.53502577,4042.1,4042.0,0.65232177]
[1759082018019,0.74173098,4042.1,4042.0,0.86632177]
[1759082018209,2.08632577,4042.1,4042.0,0.86632177]
[1759082019211,2.72642577,4042.1,4042.0,0.65232177]
[1759082019412,2.72642577,4042.1,4042.0,0.31512177]
[1759082021213,2.04329479,4042.1,4041.6,3.521]
[1759082021418,0.6401,4041.8,4041.7,0.3132]
[1759082021611,1.42439504,4041.8,4041.7,0.3132]
[1759082022222,0.8901,4041.8,4041.7,0.31569491]
[1759082022422,2.23469479,4041.8,4041.7,0.31569491]
[1759082022919,1.79329479,4041.8,4041.7,0.73909491]
[1759082023122,2.04329479,4041.8,4041.7,0.73909491]
[1759082023514,1.79329479,4041.8,4041.7,0.73909491]
[1759082023713,2.04429479,4041.8,4041.7,0.73909491]
[1759082024113,2.23569479,4041.8,4041.7,0.31569491]
[1759082025215,2.23569479,4041.8,4041.7,0.00249491]
[1759082026217,2.78203454,4041.8,4041.7,0.00249491]
[1759082028017,2.78203454,4041.8,4041.7,0.31569491]
[1759082028921,2.53103454,4041.8,4041.7,0.31569491]
[1759082029229,2.78203454,4041.8,4041.7,0.31569491]
[1759082029524,2.78203454,4041.8,4041.7,0.00249491]
[1759082031828,2.78203454,4041.8,4041.7,0.52509491]
[1759082032021,2.78203454,4041.8,4041.7,0.31569491]
[1759082032222,2.78203454,4041.8,4041.7,0.52509491]
[1759082032421,2.78203454,4041.8,4041.7,0.31569491]
[1759082033227,2.78203454,4041.8,4041.7,0.00249491]
[1759082034926,0.6284,4040.9,4040.8,0.99039]
[1759082035131,2.02749479,4040.9,4040.8,0.99039]
[1759082035330,2.02749479,4040.9,4040.8,1.21489]
[1759082036018,2.02749479,4040.9,4040.8,1.21736939]
[1759082037827,2.02749479,4040.9,4040.8,0.77207939]
[1759082038027,2.77073004,4040.9,4040.8,0.77207939]
[1759082038229,2.77097366,4040.9,4040.8,0.77207939]
[1759082038734,2.57447366,4040.9,4040.8,0.77207939]
[1759082039726,2.77097366,4040.9,4040.8,0.00247939]
[1759082039930,2.77097366,4040.9,4040.8,0.33887939]
[1759082041023,2.77097366,4040.9,4040.6,3.2078]
[1759082041024,0.4453,4040.8,4040.6,3.2078]
[1759082041228,0.6284,4040.3,4040.2,0.3364]
[1759082041535,0.6284,4040.2,4040.1,0.5451]
[1759082041837,1.17537887,4040.2,4040.1,0.5451]
[1759082042325,1.17537887,4040.2,4040.1,0.77215562]
[1759082042326,0.97887887,4040.2,4040.1,0.77215562]
[1759082042725,1.22987887,4040.2,4040.1,0.77215562]
[1759082043325,1.22987887,4040.2,4040.1,0.53076232]
[1759082043631,1.56427887,4040.2,4040.1,0.53076232]
[1759082044636,1.56427887,4040.2,4040.1,0.30626232]
[1759082047439,1.56427887,4040.2,4040.1,0.53076232]
[1759082047633,0.54697887,4040.2,4040.1,5.77215562]
[1759082047833,0.44637431,4040.2,4040.1,8.97995562]
[1759082048339,6.32661384,4041.5,4041.2,0.4332]
[1759082048631,5.31869479,4041.5,4041.4,1.21483]
[1759082048841,5.70439479,4041.5,4041.4,1.21483]
[1759082049140,5.45339479,4041.5,4041.4,1.21483]
[1759082049436,5.70439479,4041.5,4041.4,1.21483]
[1759082050029,5.70439479,4041.5,4041.4,0.44523]
[1759082050226,5.70439479,4041.5,4041.4,0.65393]
[1759082050437,3.2078,4041.5,4041.4,1.21483]
[1759082050632,3.2078,4042.0,4041.9,0.4332]
[1759082050937,4.0085,4042.0,4041.9,0.7696]
[1759082051239,5.35309479,4042.0,4041.9,0.7696]
[1759082051638,2.14529479,4042.0,4041.9,0.7696]
[1759082051935,2.36189479,4042.0,4041.9,0.7696]
[1759082052629,2.34289479,4042.0,4041.9,0.7696]
[1759082053025,2.21569479,4042.0,4041.9,0.7696]
[1759082053227,2.46669479,4042.0,4041.9,0.7696]
[1759082055840,2.34289479,4042.0,4041.9,0.7696]
[1759082056037,2.34289479,4042.0,4041.9,3.9774]
[1759082056436,0.7473,4042.0,4041.9,3.9774]
[1759082056639,0.9983,4042.0,4041.9,3.9774]
[1759082057538,0.5376,4042.4,4042.3,0.742]
[1759082057735,0.7886,4042.4,4042.3,0.742]
[1759082058134,0.7886,4042.4,4042.3,1.18713]
[1759082058337,0.9966,4042.4,4042.3,0.65233]
[1759082060343,2.60089552,4042.4,4042.3,0.65233]
[1759082062646,2.60089552,4042.4,4042.3,0.44513]
[1759082064241,0.779,4042.3,4042.2,0.44514]
[1759082064446,0.779,4042.3,4041.9,3.2078]
[1759082064447,0.9098,4042.0,4041.9,0.44517]
[1759082064645,2.76509552,4042.0,4041.9,0.44517]
[1759082066542,2.76509552,4042.0,4041.9,0.66717]
[1759082067245,2.51409552,4042.0,4041.9,0.66717]
[1759082067447,2.76509552,4042.0,4041.9,0.66717]
[1759082068439,2.76509552,4042.0,4041.9,0.44517]
[1759082070141,3.21025552,4042.0,4041.7,0.44519]
[1759082070342,1.85954408,4041.8,4041.7,0.44519]
[1759082070646,2.63429552,4041.8,4041.7,0.44519]
[1759082072545,2.63429552,4041.8,4041.7,0.66719]
[1759082072847,2.63429552,4041.8,4041.7,1.00349]
[1759082073041,2.63429552,4041.8,4041.7,1.21619]
[1759082074146,2.07959552,4041.8,4041.7,1.21619]
[1759082074850,2.41179552,4041.8,4041.7,1.21619]
[1759082078650,2.16079552,4041.8,4041.7,1.21619]
[1759082078842,2.41179552,4041.8,4041.7,1.21619]
[1759082081154,2.63429552,4041.8,4041.7,1.21619]
[1759082083153,0.52375144,4041.8,4041.7,1.21619]
[1759082083354,0.77475144,4041.8,4041.7,1.21619]
[1759082083854,1.10695144,4041.8,4041.7,1.21619]
[1759082084354,1.33125144,4041.8,4041.7,1.21619]
[1759082089361,0.77475144,4041.8,4041.7,1.21619]
[1759082090060,1.10695144,4041.8,4041.7,1.21619]
[1759082090553,1.44e-06,4041.8,4041.7,1.21619]
[1759082091561,0.44680144,4041.8,4041.7,0.771]
[1759082091764,0.4468,4040.4,4040.2,2.21272746]
[1759082091950,0.779,4040.2,4040.1,0.00255562]
[1759082092660,1.22436,4040.2,4040.1,0.00255562]
[1759082093057,0.779,4040.2,4040.1,0.00255562]
[1759082093462,0.779,4040.2,4040.1,0.44792562]
[1759082093865,1.033,4040.2,4040.1,0.44792562]
[1759082096865,0.779,4040.2,4040.1,0.44792562]
[1759082097065,1.032,4040.2,4040.1,0.44792562]
[1759082098172,0.779,4040.2,4040.1,0.44792562]
[1759082098370,1.032,4040.2,4040.1,0.44792562]
[1759082101167,0.779,4040.2,4040.1,0.44792562]
[1759082101369,1.032,4040.2,4040.1,0.44792562]
[1759082102668,1.60307135,4040.2,4040.1,0.44792562]
[1759082103061,2.43061543,4040.2,4040.1,0.44792562]
[1759082103266,2.68361543,4040.2,4040.1,0.44792562]
[1759082106275,2.43061543,4040.2,4040.1,0.44792562]
[1759082106474,2.68361543,4040.2,4040.1,0.00255562]
[1759082108079,2.68361543,4040.2,4040.1,0.44792562]
[1759082109977,1.60307135,4040.2,4040.1,0.44792562]
[1759082110675,1.35007135,4040.2,4040.1,0.44792562]
[1759082111077,1.60307135,4040.2,4040.1,0.44792562]
[1759082112670,1.35007135,4040.2,4040.1,0.44792562]
[1759082112877,2.68361543,4040.2,4040.1,0.44792562]
[1759082113367,1.60307135,4040.2,4040.1,0.44792562]
[1759082115878,1.60307135,4040.2,4039.7,3.2078]
[1759082115879,0.3112,4039.7,4038.9,3.2078]
[1759082116082,1.95974408,4039.0,4038.9,3.65331]
[1759082116277,1.45027135,4039.0,4038.9,3.65331]
[1759082116478,2.53081543,4039.0,4038.9,3.65331]
[1759082116983,2.53081543,4039.0,4038.9,3.6552398]
[1759082116984,2.53275977,4039.0,4038.9,3.6552398]
[1759082120483,1.45221569,4039.0,4038.9,3.6552398]
[1759082121072,2.80073106,4039.0,4038.9,3.6552398]
[1759082121984,2.80073106,4039.0,4038.9,3.2097298]
[1759082122675,3.05373106,4039.0,4038.9,3.2097298]
[1759082123182,3.05373106,4039.0,4038.9,0.4474398]
[1759082123479,8.05373106,4039.0,4038.4,4.32171]
[1759082123685,2.23721537,4038.5,4038.4,3.57326466]
[1759082123886,3.06128672,4038.5,4038.4,3.57326466]
[1759082124181,3.06128672,4038.5,4037.4,0.253]
[1759082124182,10.95318672,4038.5,4037.2,1.11423]
[1759082124380,0.7618,4037.9,4037.8,0.44562]
[1759082124680,1.58587135,4037.9,4037.8,0.44562]
[1759082125477,1.33287135,4037.9,4037.8,0.44046032]
[1759082125776,1.58587135,4037.9,4037.8,0.44046032]
[1759082127984,1.71559135,4037.9,4037.5,0.44566]
[1759082128173,0.7618,4037.6,4037.5,0.44566]
[1759082128379,1.33287135,4037.6,4037.5,0.44566]
[1759082128575,0.57107135,4037.6,4037.5,5.44566]
[1759082128778,0.57107135,4037.7,4037.5,5.44566]
[1759082129087,0.3159,4037.6,4037.5,5.44566]
[1759082129289,0.88697135,4037.6,4037.5,5.44566]
[1759082129881,0.57107135,4037.6,4037.5,5.44566]
[1759082130194,0.89734406,4037.8,4037.7,0.44564]
[1759082135490,1.11424406,4037.8,4037.7,0.44564]
[1759082135690,1.11424406,4037.8,4037.7,5.44564]
[1759082135691,4.06e-06,4037.8,4037.7,5.44564]
[1759082135893,0.1269,4038.0,4037.9,0.44562]
[1759082136188,0.4428,4038.0,4037.9,2.04713537]
[1759082136789,3.3347,4038.5,4038.4,0.44556]
[1759082136988,3.3347,4038.5,4038.4,1.21086]
[1759082137188,3.5516,4038.5,4038.4,1.21086]
[1759082137984,0.3438,4038.5,4038.4,1.21086]
[1759082138588,0.2169,4038.5,4038.4,1.21086]
[1759082138790,0.5328,4038.5,4038.4,1.21086]
[1759082141287,0.3159,4038.5,4038.4,1.21086]
[1759082143795,3.78974434,4039.0,4038.9,1.21081]
[1759082143994,3.65564434,4039.0,4038.9,1.21081]
[1759082145894,3.97154434,4039.0,4038.9,1.21081]
[1759082147691,4.5476693,4039.0,4038.9,1.21081]
[1759082151600,4.6745693,4039.0,4038.9,1.21081]
[1759082152000,4.6745693,4039.0,4038.9,0.89211]
[1759082152601,4.6745693,4039.0,4038.9,1.21081]
[1759082153601,4.6745693,4039.0,4038.9,0.89211]
[1759082153804,4.6745693,4039.0,4038.9,0.67131]
[1759082158408,4.9265693,4039.0,4038.9,1.01331]
[1759082160800,4.9265693,4039.0,4038.9,0.44551]
[1759082161000,4.6745693,4039.0,4038.9,0.68011]
[1759082161199,4.9265693,4039.0,4038.9,1.02211]
[1759082162908,0.1313,4038.5,4038.1,3.2078]
[1759082163211,0.9352,4038.0,4037.9,1.02222]
[1759082163507,1.51132496,4038.0,4037.9,1.02222]
[1759082169307,1.51132496,4038.0,4037.9,1.25042]
[1759082173807,1.38002496,4038.0,4037.9,2.59893537]
[1759082174104,1.52222496,4038.0,4037.9,2.59893537]
[1759082178620,0.91292496,4038.0,4037.9,2.59893537]
[1759082178920,1.14142496,4038.0,4037.9,2.59893537]
[1759082179417,1.37282496,4038.0,4037.9,2.59893537]
[1759082180228,1.37282496,4038.0,4037.9,1.25042]
[1759082182222,1.37282496,4038.0,4037.9,2.33280888]
[1759082183620,1.51652496,4038.0,4037.9,2.33280888]
[1759082185814,1.5139242,4038.0,4037.9,2.33280888]
[1759082192528,1.3702242,4038.0,4037.9,2.33280888]
[1759082196635,1.3702242,4038.0,4037.9,1.25042]
[1759082196829,1.3702242,4038.0,4037.9,2.33280888]
[1759082197529,0.5735242,4038.0,4037.9,2.33280888]
[1759082197929,0.9239242,4038.0,4037.9,2.33280888]
[1759082198133,1.1570242,4038.0,4037.9,2.33280888]
[1759082199138,1.3811242,4038.0,4037.9,2.33280888]
[1759082207046,0.4572,4038.8,4038.7,1.25913]
[1759082207246,0.4572,4038.8,4038.7,2.34151888]
[1759082207537,0.4572,4038.8,4038.7,1.75791888]
[1759082208129,0.4572,4038.8,4038.7,2.10031888]
[1759082209035,0.8076,4038.8,4038.7,2.10031888]
[1759082209241,0.8076,4038.8,4038.7,1.01793]
[1759082211340,0.8076,4038.8,4038.7,1.25913]
[1759082211542,0.2331,4038.8,4038.7,1.99911888]
[1759082211740,0.5835,4038.8,4038.7,1.99911888]
[1759082212141,0.5835,4038.8,4038.7,2.34151888]
[1759082212744,0.00194434,4039.0,4038.7,2.34151888]
[1759082212952,0.04127058,4040.3,4039.3,1.25906]
[1759082212953,4.0154,4039.4,4039.3,1.25906]
[1759082213150,4.0154,4039.4,4039.3,1.01786]
[1759082213446,10.09778888,4039.4,4039.3,0.44546]
[1759082213747,0.8119,4038.9,4038.8,0.2389]
[1759082214045,0.46277065,4038.9,4038.8,0.44552]
[1759082214450,0.81467065,4038.9,4038.8,0.44552]
[1759082217252,0.81467065,4038.9,4038.8,1.03832]
[1759082217456,0.81467065,4038.9,4038.8,1.25932]
[1759082217748,0.81467065,4038.9,4038.8,1.03832]
[1759082218958,1.35749402,4038.9,4038.8,1.03832]
[1759082219551,1.35749402,4038.9,4038.8,1.25932]
[1759082220850,1.35749402,4038.9,4038.8,0.44552]
[1759082221049,1.35749402,4038.9,4038.8,0.68442]
[1759082221254,1.35749402,4038.9,4038.8,1.03832]
[1759082221754,1.35749402,4038.9,4038.8,1.25932]
[1759082221957,0.54559402,4038.9,4038.8,1.25932]
[1759082229357,3.2078,4039.4,4039.3,0.44546]
[1759082229557,3.2078,4039.4,4039.3,1.25926]
[1759082230063,3.7942,4039.9,4039.8,0.4599]
[1759082230258,3.7942,4039.9,4039.8,1.25921]
[1759082230564,4.02172727,4039.9,4039.8,1.25921]
[1759082230957,4.02172727,4039.9,4039.8,2.34159888]
[1759082230958,0.81392727,4039.9,4039.8,2.34159888]
[1759082231269,0.00202727,4039.9,4039.8,2.59259888]
[1759082238463,0.23282727,4039.9,4039.8,2.59259888]
[1759082238666,0.82352727,4039.9,4039.8,1.28131]
[1759082239268,0.82352727,4039.9,4039.8,1.51051]
[1759082241375,1.35166544,4039.9,4039.8,1.51051]
[1759082247980,3.2078,4040.4,4040.3,1.23206]
[1759082248183,3.2078,4040.4,4040.3,2.57980758]
[1759082248881,3.21005308,4040.4,4040.3,2.58229488]
[1759082251285,0.00225308,4040.4,4040.3,2.58229488]
[1759082260189,0.3308,4041.3,4040.6,0.3342]
[1759082260486,0.7872,4041.3,4041.2,1.23196]
[1759082260690,1.31345829,4041.3,4041.2,1.23196]
[1759082261187,1.31519347,4041.3,4041.2,1.23196]
[1759082262081,0.98439347,4041.3,4041.2,1.23196]
[1759082262689,1.31519347,4041.3,4041.2,1.23196]
[1759082266396,0.76739347,4041.3,4041.2,1.23196]
[1759082266991,1.09819347,4041.3,4041.2,1.23196]
[1759082267688,1.31519347,4041.3,4041.2,1.23196]
[1759082268090,1.31519347,4041.3,4041.2,0.5669]
[1759082268298,6.31519347,4041.3,4041.2,0.44526]
[1759082269292,6.31519347,4041.3,4040.7,1.11329]
[1759082269496,1.31345829,4041.2,4041.1,0.44527]
[1759082277197,1.31345829,4041.2,4041.1,0.77367]
[1759082278098,1.31345829,4041.2,4041.1,1.01107]
[1759082278493,1.56445829,4041.2,4041.1,1.01107]
[1759082280096,1.23365829,4041.2,4041.1,1.22667]
[1759082280302,1.01665829,4041.2,4041.1,1.22667]
[1759082280497,0.52625829,4041.2,4041.1,1.22667]
[1759082283897,0.75253924,4041.2,4041.1,0.89827]
[1759082284102,1.32173924,4041.2,4041.1,0.44527]
[1759082285107,1.57273924,4041.2,4041.1,0.44527]
[1759082285901,1.57273924,4041.2,4041.1,0.77367]
[1759082288608,1.57308281,4041.2,4041.1,0.77367]
[1759082290708,1.57308281,4041.2,4041.1,1.01107]
[1759082291307,1.57308281,4041.2,4041.1,0.44527]
[1759082293910,1.57308281,4041.2,4041.1,0.99347]
[1759082300009,1.32208281,4041.2,4041.1,0.99347]
[1759082300210,1.57308281,4041.2,4041.1,0.99347]
[1759082303819,1.57308281,4041.2,4041.1,1.20907]
[1759082304620,1.57708281,4041.2,4041.1,1.20907]
[1759082306122,1.57811905,4041.2,4041.1,1.20907]
[1759082306321,0.52531905,4041.2,4041.1,1.22146623]
[1759082307720,0.52531905,4041.2,4041.1,1.2338358]
[1759082308119,0.52531905,4041.2,4041.1,1.24290452]
[1759082309320,1.31701905,4041.2,4041.1,1.24290452]
[1759082309521,1.31701905,4041.2,4041.1,0.80140452]
[1759082310217,0.52531905,4041.2,4041.1,1.25260452]
[1759082310627,0.52531905,4041.2,4041.1,4.46040452]
[1759082310823,0.7917,4042.1,4042.0,0.89637]
[1759082311027,1.0427,4042.1,4042.0,0.59483452]
[1759082311232,1.0427,4042.1,4042.0,0.03383452]
[1759082312028,1.045774,4042.1,4042.0,0.03383452]
[1759082313626,0.794774,4042.1,4042.0,0.59483452]
[1759082313817,1.045774,4042.1,4042.0,0.59483452]
[1759082314015,1.045774,4042.1,4042.0,0.03383452]
[1759082315826,0.794774,4042.1,4042.0,0.95733452]
[1759082316023,0.472574,4042.1,4042.0,0.95733452]
[1759082316225,1.045774,4042.1,4042.0,0.95733452]
[1759082316625,1.045774,4042.1,4042.0,0.59483452]
[1759082321530,0.794774,4042.1,4042.0,0.59483452]
[1759082321734,0.794774,4042.1,4042.0,0.95733452]
[1759082321735,0.472574,4042.1,4042.0,0.95733452]
[1759082322229,0.221574,4042.1,4042.0,0.95733452]
[1759082322536,0.254074,4042.1,4042.0,0.95733452]
[1759082322926,0.77617263,4042.1,4042.0,0.95733452]
[1759082323234,0.99467263,4042.1,4042.0,0.95733452]
[1759082323432,0.74367263,4042.1,4042.0,0.95733452]
[1759082323828,3.5479,4043.0,4042.0,5.95733452]
[1759082324138,3.6594,4043.0,4042.9,0.7912]
[1759082324322,3.9995,4043.0,4042.9,1.23627]
[1759082324527,4.2505,4043.0,4042.9,1.23627]
[1759082325029,3.20994358,4043.0,4042.9,2.3171548]
[1759082325226,3.20994358,4043.0,4042.9,2.35098932]
[1759082325431,3.42844358,4043.0,4042.9,2.35098932]
[1759082326931,4.00164358,4043.0,4042.9,1.27010452]
[1759082327728,4.25264358,4043.0,4042.9,1.27010452]
[1759082331633,4.25264358,4043.0,4042.9,1.28697235]
[1759082334144,4.00164358,4043.0,4042.9,1.28697235]
[1759082334342,4.25264358,4043.0,4042.9,1.28697235]
[1759082335140,4.38604358,4043.0,4042.9,0.49577235]
[1759082335342,5.46692838,4043.0,4042.9,0.49577235]
[1759082335940,5.98504005,4043.0,4042.9,0.49577235]
[1759082337050,5.98504005,4043.0,4042.9,0.83807235]
[1759082337948,5.98504005,4043.0,4042.9,0.49577235]
[1759082338146,5.98504005,4043.0,4042.9,0.05070235]
[1759082338550,4.90415525,4043.0,4042.9,0.05070235]
[1759082338750,5.98504005,4043.0,4042.9,0.05070235]
[1759082343452,10.98504005,4043.0,4042.9,0.05070235]
[1759082343843,10.98504005,4043.0,4041.8,0.44519]
[1759082343844,0.4484,4041.9,4041.8,0.44519]
[1759082344154,4.75541167,4041.9,4041.8,1.00129]
[1759082344652,4.75541167,4041.9,4041.8,1.22039]
[1759082346161,3.97691167,4041.9,4041.8,1.22039]
[1759082346857,0.76911167,4041.9,4041.8,1.22039]
[1759082349159,1.54761167,4041.9,4041.8,0.7752]